fUST/lending_fUST_20251014
["ID","MTS","AMOUNT","RATE_DAILY","PERIOD"]
[391262497,1760451032825,-631.134464,0.00020192,2]
[391262499,1760451032835,-500.0,0.00020192,2]
[391262501,1760451032846,-500.0,0.00020192,2]
[391262503,1760451032855,-500.0,0.00020192,2]
[391262504,1760451032865,-500.0,0.00020192,2]
[391262505,1760451032874,-500.0,0.00020192,2]
[391262507,1760451032884,-500.0,0.00020192,2]
[391262508,1760451032893,-500.0,0.00020192,2]
[391262510,1760451032902,-500.0,0.00020192,2]
[391262512,1760451032911,-500.0,0.00020192,2]
[391262514,1760451032921,-500.0,0.00020192,2]
[391262516,1760451032930,-500.0,0.00020192,2]
[391262518,1760451032940,-500.0,0.00020192,2]
[391262520,1760451032950,-500.0,0.00020192,2]
[391262522,1760451032959,-500.0,0.00020192,2]
[391262524,1760451032969,-500.0,0.00020192,2]
[391262526,1760451032979,-500.0,0.00020192,2]
[391262528,1760451032989,-500.0,0.00020192,2]
[391262530,1760451032998,-383.13581379,0.00020192,2]
[391262532,1760451033008,-500.0,0.00020192,2]
[391262534,1760451033017,-500.0,0.00020192,2]
[391262536,1760451033027,-500.0,0.00020192,2]
[391262538,1760451033036,-500.0,0.00020192,2]
[391262540,1760451033051,-500.0,0.00020192,2]
[391262542,1760451033062,-500.0,0.00020192,2]
[391262544,1760451033077,-500.0,0.00020192,2]
[391262546,1760451033086,-500.0,0.00020192,2]
[391262548,1760451033095,-500.0,0.00020192,2]
[391262550,1760451033105,-240.91498658,0.00020192,2]
[391262552,1760451033114,-500.0,0.00020192,2]
[391262554,1760451033123,-500.0,0.00020192,2]
[391262556,1760451033133,-498.61646111,0.00020192,2]
[391262558,1760451033143,-500.0,0.00020192,2]
[391262560,1760451033153,-500.0,0.00020192,2]
[391262562,1760451033162,-429.87394843,0.00020192,2]
[391262564,1760451033172,-7916.66,0.00020193,2]
[391262565,1760451033181,-7916.66,0.00020193,2]
[391262567,1760451033190,-7916.66,0.00020193,2]
[391262569,1760451033200,-7916.66,0.00020193,2]
[391262571,1760451033210,-7916.66,0.00020193,2]
[391262573,1760451033220,-7916.66,0.00020193,2]
[391262575,1760451033230,-242.85958274,0.00020193,2]
[391262578,1760451033243,-5398.0841237,0.00020193,2]
[391262580,1760451033255,-2275.71629356,0.00020193,2]
[391262582,1760451033265,-1592.240988,0.00020193,2]
[391263054,1760451038119,-1083.99525696,0.00020193,2]
[391263056,1760451038131,-1000.9999859,0.00020193,2]
[391263059,1760451038144,-1539.17377249,0.00020193,2]
[391263061,1760451038155,-2309.47599109,0.00020193,2]
[391263063,1760451038166,-390.77400556,0.00020193,2]
[391263065,1760451038176,-150.4255684,0.00020193,2]
[391263067,1760451038187,-7766.2344316,0.00020193,2]
[391263069,1760451038197,-7916.66,0.00020193,2]
[391263071,1760451038206,-7916.66,0.00020193,2]
[391263073,1760451038217,-7916.66,0.00020193,2]
[391263075,1760451038226,-7916.66,0.00020193,2]
[391263077,1760451038235,-7916.66,0.00020193,2]
[391263079,1760451038244,-7916.66,0.00020193,2]
[391263081,1760451038253,-7916.66,0.00020193,2]
[391263083,1760451038262,-7916.66,0.00020193,2]
[391263085,1760451038272,-7916.66,0.00020193,2]
[391263086,1760451038281,-7916.66,0.00020193,2]
[391263087,1760451038293,-7916.66,0.00020193,2]
[391263088,1760451038303,-7916.66,0.00020193,2]
[391263089,1760451038312,-7916.66,0.00020193,2]
[391263090,1760451038321,-7916.66,0.00020193,2]
[391263091,1760451038330,-7916.82,0.00020193,2]
[391263092,1760451038339,-500.0,0.00020193,2]
[391263093,1760451038349,-500.0,0.00020193,2]
[391263094,1760451038359,-500.0,0.00020193,2]
[391263095,1760451038369,-500.0,0.00020193,2]
[391263097,1760451038383,-500.0,0.00020193,2]
[391263099,1760451038392,-500.0,0.00020193,2]
[391263100,1760451038401,-172.24470933,0.00020193,2]
[391263102,1760451038410,-500.0,0.00020194,2]
[391263104,1760451038419,-500.0,0.00020194,2]
[391263106,1760451038429,-481.84570775,0.00020194,2]
[391263108,1760451038438,-500.0,0.00020194,2]
[391263110,1760451038447,-500.0,0.00020194,2]
[391263112,1760451038457,-317.92220688,0.00020194,2]
[391263114,1760451038466,-500.0,0.00020194,2]
[391263116,1760451038475,-500.0,0.00020194,2]
[391263118,1760451038485,-500.0,0.00020194,2]
[391263120,1760451038495,-500.0,0.00020194,2]
[391263122,1760451038504,-500.0,0.00020194,2]
[391263124,1760451038514,-500.0,0.00020194,2]
[391263127,1760451038524,-500.0,0.00020194,2]
[391263129,1760451038533,-500.0,0.00020194,2]
[391263131,1760451038546,-500.0,0.00020194,2]
[391263133,1760451038556,-500.0,0.00020194,2]
[391263135,1760451038565,-500.0,0.00020194,2]
[391263137,1760451038574,-500.0,0.00020194,2]
[391263139,1760451038584,-506.96001929,0.00020194,2]
[391263141,1760451038593,-500.0,0.00020194,2]
[391263143,1760451038602,-402.6973604,0.00020194,2]
[391263145,1760451038611,-500.0,0.00020195,2]
[391263147,1760451038622,-635.6734142,0.00020195,2]
[391263149,1760451038631,-1000.0,0.00020195,2]
[391263151,1760451038641,-370000.0,0.00020196,2]
[391263153,1760451038650,-500.0,0.00020298,2]
[391263155,1760451038659,-500.0,0.00020298,2]
[391263157,1760451038669,-546.48168393,0.00020298,2]
[391263159,1760451038679,-600.0,0.00020589,2]
[391263161,1760451038689,-1788.51,0.00020718,2]
[391263163,1760451038698,-217.5,0.00020786,2]
[391263165,1760451038707,-420.0,0.00020854,2]
[391263167,1760451038716,-7433.23130385,0.00021,3]
[391263169,1760451038726,-240.0,0.00021386,2]
[391263171,1760451038737,-988.48,0.00021556,3]
[391263173,1760451038747,-494.24,0.00021556,3]
[391263175,1760451038756,-1005.13980431,0.00021565,2]
[391263177,1760451038766,-160.72361092,0.00021802,2]
[391263179,1760451038775,-186.0,0.00021836,5]
[391263181,1760451038785,-3000.0,0.000219,2]
[391263183,1760451038797,-3000.0,0.0002191,2]
[391263185,1760451038806,-3000.0,0.0002192,2]
[391263187,1760451038816,-3000.0,0.0002193,2]
[391263189,1760451038826,-3000.0,0.0002194,2]
[391263191,1760451038836,-3000.0,0.0002195,2]
[391263192,1760451038846,-3000.0,0.0002196,2]
[391263193,1760451038856,-3000.0,0.0002197,2]
[391263194,1760451038865,-500.0,0.00021973,2]
[391263195,1760451038875,-3000.0,0.0002198,2]
[391263196,1760451038885,-262.5,0.00021986,2]
[391263197,1760451038894,-5663.826578,0.0002199,2]
[391263198,1760451038904,-26030.25,0.00022,7]
[391263199,1760451038913,-160.0,0.00022,7]
[391263200,1760451038923,-1000.0,0.00022521,2]
[391263201,1760451038932,-285.0,0.00022586,2]
[391263202,1760451038943,-3577.01,0.00022601,2]
[391263203,1760451038952,-720.0,0.00022648,20]
[391263204,1760451038962,-587.0,0.00022728,2]
[391263205,1760451038972,-502.97793068,0.00023068,2]
[391263206,1760451038981,-160.72361092,0.00023511,2]
[391263207,1760451038994,-10000.0,0.00024,8]
[391263208,1760451039004,-302.36966278,0.00024077,2]
[391263209,1760451039013,-3000.0,0.000241,2]
[391263210,1760451039022,-3000.0,0.0002411,2]
[391263211,1760451039031,-3000.0,0.0002412,2]
[391263212,1760451039045,-3000.0,0.0002413,2]
[391263213,1760451039055,-3000.0,0.0002414,2]
[391263214,1760451039066,-3000.0,0.0002415,2]
[391263215,1760451039077,-3000.0,0.0002416,2]
[391263216,1760451039087,-3000.0,0.0002417,2]
[391263217,1760451039097,-500.0,0.00024173,2]
[391263218,1760451039107,-3000.0,0.0002418,2]
[391263219,1760451039116,-3000.0,0.0002419,2]
[391263220,1760451039126,-3000.0,0.000242,2]
[391263221,1760451039138,-151.0,0.000242,2]
[391263222,1760451039149,-3000.0,0.0002421,2]
[391263223,1760451039158,-3000.0,0.0002422,2]
[391263224,1760451039167,-3000.0,0.0002423,2]
[391263225,1760451039176,-3000.0,0.0002424,2]
[391263226,1760451039186,-3000.0,0.0002425,2]
[391263227,1760451039195,-198.0,0.00024255,2]
[391263228,1760451039204,-3000.0,0.0002426,2]
[391263229,1760451039214,-3000.0,0.0002427,2]
[391263230,1760451039223,-3000.0,0.0002428,2]
[391263231,1760451039232,-3000.0,0.0002429,2]
[391263232,1760451039241,-196.08850868,0.000243,2]
[391263233,1760451039250,-338.98632488,0.000243,2]
[391263234,1760451039259,-3000.0,0.000243,2]
[391263235,1760451039269,-3000.0,0.0002431,2]
[391263236,1760451039278,-3000.0,0.0002432,2]
[391263237,1760451039289,-3000.0,0.0002433,2]
[391263238,1760451039299,-3000.0,0.0002434,2]
[391263239,1760451039308,-402.43064913,0.00024344,2]
[391263240,1760451039318,-160.0,0.00024344,2]
[391263241,1760451039327,-3000.0,0.0002435,2]
[391263242,1760451039337,-3000.0,0.0002436,2]
[391263243,1760451039346,-3000.0,0.0002437,2]
[391263244,1760451039355,-8677.11989616,0.0002437,3]
[391263245,1760451039364,-3000.0,0.0002438,2]
[391263246,1760451039374,-3000.0,0.0002439,2]
[391263247,1760451039384,-3000.0,0.000244,2]
[391263248,1760451039394,-3000.0,0.0002441,2]
[391263249,1760451039404,-3000.0,0.0002442,2]
[391263250,1760451039413,-3000.0,0.0002443,2]
[391263251,1760451039423,-3000.0,0.0002444,2]
[391263252,1760451039431,-3000.0,0.0002445,2]
[391263253,1760451039441,-3000.0,0.0002446,2]
[391263254,1760451039450,-3000.0,0.0002447,2]
[391263255,1760451039459,-3000.0,0.0002448,2]
[391263256,1760451039468,-5365.52,0.00024485,2]
[391263257,1760451039477,-3000.0,0.0002449,2]
[391263258,1760451039486,-196.08850868,0.000245,2]
[391263259,1760451039496,-338.98632488,0.000245,2]
[391263260,1760451039506,-3000.0,0.000245,2]
[391263261,1760451039515,-3000.0,0.0002451,2]
[391263262,1760451039524,-3000.0,0.0002452,2]
[391263263,1760451039534,-3000.0,0.0002453,2]
[391263264,1760451039547,-4060.154367,0.0002454,2]
[391263265,1760451039556,-174.0,0.00024575,13]
[391263266,1760451039566,-200.0,0.00024658,15]
[391263267,1760451039575,-196.08850868,0.000247,2]
[391263268,1760451039584,-338.98632488,0.000247,2]
[391263269,1760451039594,-981.0,0.00024709,2]
[391263270,1760451039604,-631.0,0.00024709,2]
[391263271,1760451039613,-2161.0,0.00024709,2]
[391263272,1760451039622,-8397.0,0.0002471,2]
[391263273,1760451039634,-176.89510933,0.00024721,2]
[391263275,1760451039644,-823.0,0.0002477,2]
[391263277,1760451039653,-177.61376416,0.00024812,2]
[391263279,1760451039663,-442380.736505,0.000249,2]
[391263281,1760451039672,-864.0,0.00024912,20]
[391263283,1760451039682,-263.196,0.00024969,8]
[391263285,1760451039691,-338.98632488,0.00025,2]
[391263287,1760451039700,-338.98632488,0.000252,2]
[391263289,1760451039710,-160.72361092,0.00025221,2]
[391263290,1760451039719,-150.0,0.0002569,2]
[391263292,1760451039728,-6047.11,0.00026027,2]
[391263295,1760451039738,-154.904952,0.00026225,3]
[391263296,1760451039748,-7154.03,0.00026368,2]
[391263298,1760451039758,-160.72361092,0.00026931,2]
[391263300,1760451039767,-1152.0,0.00026996,2]
[391263302,1760451039776,-154.904952,0.00027,3]
[391263304,1760451039786,-10000.0,0.00027,9]
[391263306,1760451039797,-157.955985,0.00027,3]
[391263308,1760451039807,-6047.11,0.00027397,4]
[391263310,1760451039816,-1000.0,0.00027404,30]
[391263312,1760451039825,-3162.14,0.000275,2]
[391263314,1760451039834,-500.0,0.000275,10]
[391263316,1760451039844,-500.0,0.000275,10]
[391263318,1760451039852,-981.0,0.00027709,2]
[391263320,1760451039862,-631.0,0.00027709,2]
[391263322,1760451039872,-2161.0,0.00027709,2]
[391263324,1760451039882,-281.42,0.0002771,15]
[391263326,1760451039891,-281.42,0.0002781,15]
[391263328,1760451039903,-180.0,0.00027863,26]
[391263330,1760451039912,-281.42,0.0002791,15]
[391263332,1760451039922,-251.99672079,0.00027978,2]
[391263333,1760451039931,-18603.8837,0.00027978,2]
[391263336,1760451039941,-250.0,0.00027978,2]
[391263338,1760451039950,-250.0,0.00027978,2]
[391263341,1760451039961,-250.0,0.00027978,2]
[391263344,1760451039970,-250.0,0.00027978,2]
[391263347,1760451039980,-250.0,0.00027978,2]
[391263350,1760451039989,-250.0,0.00027978,2]
[391263353,1760451039999,-250.0,0.00027978,2]
[391263356,1760451040008,-250.0,0.00027978,2]
[391263359,1760451040017,-250.0,0.00027978,2]
[391263362,1760451040026,-250.0,0.00027978,2]
[391263365,1760451040036,-250.0,0.00027978,2]
[391263368,1760451040051,-250.0,0.00027978,2]
[391263370,1760451040060,-250.0,0.00027978,2]
[391263373,1760451040072,-250.0,0.00027978,2]
[391263376,1760451040082,-250.0,0.00027978,2]
[391263380,1760451040092,-250.0,0.00027978,2]
[391263381,1760451040101,-250.0,0.00027978,2]
[391263384,1760451040111,-68.19435181,0.00027978,2]
[391263386,1760451040124,-181.80564819,0.00027978,2]
[391263388,1760451040135,-245.53150205,0.0002801,15]
[391263390,1760451040148,-35.88849795,0.0002801,15]
[391263392,1760451040157,-281.42,0.0002811,15]
[391263394,1760451040166,-122.94735767,0.0002821,15]
[391263411,1760451040322,-158.47264233,0.0002821,15]
[391263413,1760451040331,-473.62497199,0.00028252,2]
[391263415,1760451040342,-583.92967298,0.00028252,2]
[391263566,1760451043249,-7884.97535503,0.00028252,2]
[391263567,1760451043258,-281.42,0.0002831,15]
[391263568,1760451043267,-496.24129189,0.00028351,22]
[391263569,1760451043276,-26030.25,0.000284,7]
[391263570,1760451043286,-5881.1,0.000284,2]
[391263571,1760451043297,-281.42,0.0002841,15]
[391263572,1760451043307,-800.0,0.00028457,7]
[391263573,1760451043317,-1060.911764,0.00028478,2]
[391263574,1760451043326,-281.42,0.0002851,15]
[391263575,1760451043451,-19292.2273969,0.00028526,2]
[391263576,1760451043460,-281.42,0.0002861,15]
[391263578,1760451043470,-160.72361092,0.0002864,2]
[391263580,1760451043480,-618.1339211,0.00028683,5]
[391263582,1760451043489,-281.42,0.0002871,15]
[391263583,1760451043498,-6047.11,0.00028767,6]
[391263585,1760451043507,-281.42,0.0002881,15]
[391263587,1760451043517,-281.42,0.0002891,15]
[391263589,1760451043527,-281.42,0.0002901,15]
[391263591,1760451043536,-20006.03981059,0.00029074,2]
[391263593,1760451043547,-256.0,0.00029088,2]
[391263595,1760451043556,-281.42,0.0002911,15]
[391263597,1760451043566,-281.42,0.0002921,15]
[391263599,1760451043575,-256.0,0.00029259,2]
[391263601,1760451043584,-800.0,0.00029279,7]
[391263603,1760451043593,-281.42,0.0002931,15]
[391263605,1760451043602,-281.42,0.0002941,15]
[391263606,1760451043611,-256.0,0.00029416,2]
[391263607,1760451043621,-884.0,0.00029421,2]
[391263608,1760451043631,-468.0,0.00029495,2]
[391263609,1760451043639,-256.0,0.00029505,2]
[391263610,1760451043649,-281.42,0.0002951,15]
[391263611,1760451043658,-281.42,0.0002961,15]
[391263612,1760451043667,-17613.40260646,0.00029622,2]
[391263613,1760451043677,-468.0,0.00029629,2]
[391263614,1760451043687,-256.0,0.00029681,2]
[391263615,1760451043696,-281.42,0.0002971,15]
[391263616,1760451043705,-281.42,0.0002981,15]
[391263617,1760451043714,-468.0,0.00029857,2]
[391263618,1760451043724,-3399.0,0.00029863,2]
[391263619,1760451043733,-200.0,0.00029884,120]
[391263620,1760451043743,-281.42,0.0002991,15]
[391263621,1760451043752,-201.0,0.0002991,25]
[391263622,1760451043762,-10000.0,0.0003,10]
[391263623,1760451043771,-1000.0,0.0003,120]
[391263624,1760451043781,-281.42,0.0003001,15]
[391263625,1760451043792,-800.0,0.00030101,7]
[391263626,1760451043802,-281.42,0.0003011,15]
[391263627,1760451043811,-10731.04,0.00030135,2]
[391263628,1760451043821,-6047.11,0.00030136,8]
[391263629,1760451043831,-1000.0,0.00030144,30]
[391263630,1760451043840,-244.0,0.00030144,30]
[391263631,1760451043850,-281.42,0.0003021,15]
[391263632,1760451043859,-6009.12383846,0.0003025,2]
[391263633,1760451043869,-281.42,0.0003031,15]
[391263634,1760451043878,-1247.1585642,0.00030348,2]
[391263635,1760451043887,-180.2810815,0.00030348,2]
[391263636,1760451043896,-443.9584585,0.00030348,2]
[391263637,1760451043906,-160.72361092,0.0003035,2]
[391263638,1760451043915,-67304.99488537,0.0003035,7]
[391263639,1760451043927,-745.0,0.0003035,7]
[391263640,1760451043938,-1032.26229459,0.0003035,7]
[391263641,1760451043955,-7906.6,0.0003035,7]
[391263793,1760451046239,-160.0,0.00024344,2]
[391263795,1760451046249,-160.0,0.00024344,2]
[391263797,1760451046259,-56.68,0.00024344,2]
[391263852,1760451046791,-360.47472785,0.00024344,2]
[391263854,1760451046803,-3633.74,0.00029612,10]
[391263856,1760451046812,-15601.70666552,0.0003035,7]
[391263858,1760451046823,-388.65719743,0.0003035,7]
[391265501,1760451495630,743.235269,0.00013699,2]
[391265533,1760452102292,300.0,0.000137,2]
[391265534,1760452113784,300.0,0.000137,2]
[391265542,1760452124968,300.0,0.000137,2]
[391265547,1760452176775,2680.87,0.00030434,120]
[391265613,1760452232506,-300.0,0.00020082,2]
[391265615,1760452232515,-300.0,0.00020082,2]
[391265617,1760452232524,-300.0,0.00020082,2]
[391265619,1760452232537,-300.0,0.00020082,2]
[391265621,1760452232546,-853.18409921,0.00020082,2]
[391265623,1760452232557,-346.81590079,0.00020082,2]
[391265625,1760452232567,-1176.36,0.00020083,3]
[391265627,1760452232575,-588.18,0.00020083,3]
[391265629,1760452232584,-294.09,0.00020083,3]
[391265631,1760452232594,-882.3,0.00020083,3]
[391265633,1760452232603,-1837.50478082,0.00020087,2]
[391265635,1760452232612,-344.281973,0.00020091,2]
[391265700,1760452238333,-855.718027,0.00020091,2]
[391265701,1760452238343,-2256.3402912,0.00020091,2]
[391265703,1760452238352,-1077.33486859,0.00020092,2]
[391265704,1760452238362,-12333.18825559,0.00020092,2]
[391265705,1760452238374,-500.0,0.00020092,2]
[391265706,1760452238384,-255.28581886,0.00020092,2]
[391265707,1760452238393,-653.86969548,0.00020092,2]
[391265708,1760452238402,-503.12403295,0.00020092,2]
[391265709,1760452238412,-241.56789131,0.00020092,2]
[391265710,1760452238422,-500.0,0.00020092,2]
[391265711,1760452238433,-500.0,0.00020092,2]
[391265712,1760452238444,-500.0,0.00020092,2]
[391265713,1760452238454,-500.0,0.00020092,2]
[391265714,1760452238464,-607.45371484,0.00020092,2]
[391265715,1760452238474,-500.0,0.00020092,2]
[391265717,1760452238484,-500.0,0.00020092,2]
[391265719,1760452238493,-500.0,0.00020092,2]
[391265721,1760452238503,-500.0,0.00020092,2]
[391265723,1760452238512,-611.81361398,0.00020092,2]
[391265725,1760452238522,-500.0,0.00020092,2]
[391265727,1760452238531,-500.0,0.00020092,2]
[391265729,1760452238543,-500.0,0.00020092,2]
[391265731,1760452238552,-500.0,0.00020092,2]
[391265733,1760452238562,-500.0,0.00020092,2]
[391265735,1760452238571,-500.0,0.00020092,2]
[391265737,1760452238581,-500.0,0.00020092,2]
[391265739,1760452238590,-500.0,0.00020092,2]
[391265741,1760452238599,-500.0,0.00020092,2]
[391265742,1760452238609,-369.90700024,0.00020092,2]
[391265743,1760452238618,-500.0,0.00020092,2]
[391265745,1760452238628,-500.0,0.00020092,2]
[391265746,1760452238637,-500.0,0.00020092,2]
[391265747,1760452238647,-500.0,0.00020092,2]
[391265748,1760452238656,-410.3018984,0.00020092,2]
[391265749,1760452238665,-500.0,0.00020092,2]
[391265750,1760452238675,-500.0,0.00020092,2]
[391265751,1760452238684,-500.0,0.00020092,2]
[391265752,1760452238693,-500.0,0.00020092,2]
[391265753,1760452238702,-500.0,0.00020092,2]
[391265754,1760452238711,-500.0,0.00020092,2]
[391265755,1760452238721,-500.0,0.00020092,2]
[391265756,1760452238731,-500.0,0.00020092,2]
[391265757,1760452238740,-370000.0,0.00020093,2]
[391265758,1760452238750,-603.50575654,0.000201,2]
[391265759,1760452238759,-743.235269,0.00020187,2]
[391265760,1760452238768,-500.0,0.00020191,2]
[391265761,1760452238778,-500.0,0.00020191,2]
[391265762,1760452238789,-500.0,0.00020191,2]
[391265763,1760452238799,-500.0,0.00020191,2]
[391265764,1760452238808,-500.0,0.00020191,2]
[391265765,1760452238817,-500.0,0.00020191,2]
[391265766,1760452238831,-500.0,0.00020191,2]
[391265767,1760452238840,-500.0,0.00020191,2]
[391265768,1760452238849,-500.0,0.00020191,2]
[391265769,1760452238858,-500.0,0.00020191,2]
[391265770,1760452238867,-500.0,0.00020191,2]
[391265771,1760452238995,-500.0,0.00020191,2]
[391265772,1760452239006,-500.0,0.00020191,2]
[391265773,1760452239016,-500.0,0.00020191,2]
[391265774,1760452239026,-500.0,0.00020191,2]
[391265775,1760452239037,-500.0,0.00020191,2]
[391265776,1760452239047,-500.0,0.00020191,2]
[391265777,1760452239057,-500.0,0.00020191,2]
[391265778,1760452239067,-266.04140526,0.00020191,2]
[391265779,1760452239077,-500.0,0.00020366,2]
[391265780,1760452239087,-1962.87,0.00020416,2]
[391265781,1760452239096,-300.0,0.00020494,2]
[391265782,1760452239106,-300.0,0.00020494,2]
[391265783,1760452239115,-300.0,0.00020494,2]
[391265784,1760452239125,-300.0,0.00020494,2]
[391265785,1760452239135,-300.0,0.00020494,2]
[391265786,1760452239144,-300.0,0.00020494,2]
[391265787,1760452239154,-300.0,0.00020494,2]
[391265788,1760452239164,-300.0,0.00020494,2]
[391265789,1760452239184,-300.0,0.00020494,2]
[391265790,1760452239195,-300.0,0.00020494,2]
[391265791,1760452239206,-300.0,0.00020494,2]
[391265792,1760452239216,-300.0,0.00020494,2]
[391265793,1760452239226,-300.0,0.00020494,2]
[391265794,1760452239236,-300.0,0.00020494,2]
[391265795,1760452239246,-300.0,0.00020494,2]
[391265796,1760452239256,-600.0,0.00020494,2]
[391265797,1760452239266,-500.0,0.0002064,2]
[391265798,1760452239276,-374.98897096,0.00020914,2]
[391265799,1760452239289,-2352.72,0.00021453,3]
[391265800,1760452239299,-1176.36,0.00021453,3]
[391265801,1760452239308,-588.18,0.00021453,3]
[391265802,1760452239318,-173.0,0.00021863,5]
[391265803,1760452239328,-420.0,0.00021865,2]
[391265804,1760452239337,-420.0,0.00021865,2]
[391265805,1760452239348,-241.0,0.00021865,2]
[391265806,1760452239357,-420.0,0.00021865,2]
[391265807,1760452239368,-562.0,0.00021875,2]
[391265808,1760452239386,-1680.0,0.0002197,2]
[391265809,1760452239395,-165.0,0.00022,2]
[391265810,1760452239406,-41648.41,0.00022,7]
[391265811,1760452239415,-3925.74,0.00022272,2]
[391265812,1760452239426,-720.0,0.00022543,20]
[391265813,1760452239435,-2256.3402912,0.00022594,2]
[391265814,1760452239445,-402.43064913,0.000226,7]
[391265815,1760452239457,-160.0,0.00023,2]
[391265816,1760452239467,-76600.12886609,0.00023,2]
[391265817,1760452239477,-160.0,0.0002315,2]
[391265818,1760452239486,-500.0,0.00023273,2]
[391265819,1760452239496,-95000.0,0.00023288,30]
[391265820,1760452239506,-160.0,0.00023288,30]
[391265821,1760452239515,-260.0,0.00023698,2]
[391265822,1760452239524,-587.0,0.00023807,2]
[391265823,1760452239535,-463.0,0.00023807,2]
[391265824,1760452239545,-188.0,0.00023807,2]
[391265825,1760452239554,-1000.0,0.00023821,2]
[391265826,1760452239563,-355.55555556,0.00023933,2]
[391265827,1760452239572,-355.55555556,0.00023933,2]
[391265828,1760452239582,-355.55555556,0.00023933,2]
[391265829,1760452239591,-20334.32,0.00024,2]
[391265830,1760452239601,-11209.17,0.00024,2]
[391265831,1760452239610,-5333.94479104,0.00024,60]
[391265832,1760452239620,-2351.0,0.00024036,2]
[391265833,1760452239629,-355.55555556,0.00024077,4]
[391265834,1760452239639,-355.55555556,0.00024077,4]
[391265835,1760452239648,-5888.61,0.00024128,2]
[391265836,1760452239657,-244554.48415192,0.00024142,2]
[391265837,1760452239667,-355.55555556,0.00024221,6]
[391265838,1760452239676,-355.55555556,0.00024221,6]
[391265839,1760452239685,-355.55555556,0.00024221,6]
[391265840,1760452239694,-360.0,0.00024246,2]
[391265841,1760452239703,-160.0,0.00024295,2]
[391265842,1760452239712,-355.55555556,0.00024365,8]
[391265843,1760452239722,-355.55555556,0.00024365,8]
[391265844,1760452239732,-355.55555556,0.00024365,8]
[391265845,1760452239741,-1500.0,0.00024368,2]
[391265846,1760452239751,-265.25734317,0.0002443,3]
[391265847,1760452239760,-355.55555556,0.00024509,10]
[391265848,1760452239769,-355.55555556,0.00024509,10]
[391265849,1760452239779,-355.55555556,0.00024509,10]
[391265850,1760452239792,-24030.82851606,0.000246,3]
[391265851,1760452239801,-460.0,0.00024794,2]
[391265852,1760452239811,-864.0,0.00024797,20]
[391265853,1760452239820,-10248.5031428,0.000248,2]
[391265854,1760452239829,-28672.65636699,0.000248,3]
[391265855,1760452239839,-200.5481334,0.00024873,2]
[391265856,1760452239848,-500.0,0.00024873,2]
[391265857,1760452239857,-284.77758156,0.00024873,2]
[391265858,1760452239867,-6521.77472723,0.0002489,2]
[391265859,1760452239876,-442380.736505,0.000249,2]
[391265860,1760452239885,-160.0,0.00024914,2]
[391265861,1760452239894,-2000.0,0.00024916,2]
[391265862,1760452239903,-210.557,0.00024956,8]
[391265863,1760452239913,-2256.3402912,0.00025097,2]
[391265864,1760452239922,-162.0,0.00025151,15]
[391265865,1760452239931,-1837.5047808,0.00025211,2]
[391265866,1760452239940,-41648.41,0.000253,7]
[391265868,1760452239949,-560.0,0.00025342,2]
[391265869,1760452239959,-1000.0,0.00025421,2]
[391265870,1760452239968,-2500.0,0.00025464,2]
[391265871,1760452239977,-411.001,0.00025856,2]